bitfinex/quotes_SOLUSD_20220117
["timestamp","ask_amount","ask_price","bid_price","bid_amount"]
[1642445030812,3.84653826,139.07,139.0,42.22690478]
[1642445031212,37.50633826,139.08,139.0,42.22690478]
[1642445031612,14.13653826,139.08,139.0,42.22690478]
[1642445032013,14.13653826,139.08,139.0,41.72690478]
[1642445033515,3.84653826,139.09,139.0,50.10290478]
[1642445034219,3.84653826,139.09,139.0,61.78901122]
[1642445034418,3.84653826,139.09,139.0,72.57431122]
[1642445034618,3.84653826,139.11,139.0,72.57431122]
[1642445034818,3.84653826,139.11,139.01,24.9352]
[1642445035441,3.84653826,139.11,139.01,96.4252]
[1642445035941,7.94996269,139.11,139.01,96.4252]
[1642445036143,7.94996269,139.11,139.01,107.2097]
[1642445036546,7.94996269,139.11,139.01,119.61802867]
[1642445036944,3.84653826,139.12,139.01,119.61802867]
[1642445037446,3.84653826,139.12,139.01,108.83352867]
[1642445038546,3.84653826,139.12,139.01,114.73352867]
[1642445039649,16.19992102,139.12,139.01,114.73352867]
[1642445039849,16.19992102,139.12,139.01,24.9352]
[1642445040252,10.29,139.11,139.01,24.9352]
[1642445041050,7.94973704,139.1,139.01,24.9352]
[1642445041251,58.92442853,139.09,139.01,24.9352]
[1642445041852,21.0786,139.09,139.01,24.9352]
[1642445042052,23.25473714,139.09,139.01,24.9352]
[1642445042251,12.46613714,139.09,139.01,24.9352]
[1642445043651,8.61959888,139.09,139.01,24.9352]
[1642445044254,5.86414228,139.09,139.01,24.9352]
[1642445045554,20.49928054,139.09,139.01,24.9352]
[1642445047352,7.90812764,139.08,139.01,24.9352]
[1642445047552,18.69822764,139.08,139.01,24.9352]
[1642445048555,14.63663826,139.08,139.01,24.9352]
[1642445049153,24.92663826,139.08,139.01,24.9352]
[1642445049752,14.13653826,139.08,139.01,24.9352]
[1642445049953,3.84653826,139.08,139.01,24.9352]
[1642445050157,3.84653826,139.09,139.01,24.9352]
[1642445051056,16.43893694,139.12,139.01,24.9352]
[1642445051057,3.84653826,139.11,139.01,24.9352]
[1642445051258,7.95001006,139.11,139.01,24.9352]
[1642445051660,14.6800442,139.1,139.01,24.9352]
[1642445052262,24.9700442,139.1,139.01,24.9352]
[1642445052862,10.29,139.1,139.01,24.9352]
[1642445053264,14.13653826,139.1,139.01,24.9352]
[1642445053864,61.27521675,139.1,139.01,24.9352]
[1642445054669,72.06301675,139.1,139.01,24.9352]
[1642445055067,24.92433826,139.1,139.01,24.9352]
[1642445057773,14.13653826,139.1,139.01,24.9352]
[1642445060172,29.78932176,139.1,139.01,24.9352]
[1642445061300,10.29,139.1,139.01,24.9352]
[1642445061474,14.13653826,139.1,139.01,24.9352]
[1642445069383,14.13653826,139.1,139.01,96.4252]
[1642445069784,14.13653826,139.1,139.01,108.16108673]
[1642445070586,10.9034,139.12,139.01,108.16108673]
[1642445070587,38.94484138,139.11,139.01,108.16108673]
[1642445072690,38.94484138,139.11,139.01,36.67108673]
[1642445072892,49.23484138,139.11,139.01,24.9352]
[1642445074391,3.84653826,139.1,139.01,24.9352]
[1642445074691,7.92125654,139.1,139.01,24.9352]
[1642445076006,7.92125654,139.1,139.01,35.72]
[1642445076205,4.07471828,139.1,139.01,35.72]
[1642445076420,4.07471828,139.1,139.01,24.9352]
[1642445076824,38.0007153,139.09,139.01,24.9352]
[1642445077429,55.0977153,139.09,139.01,24.9352]
[1642445078526,65.8865153,139.09,139.01,24.9352]
[1642445078728,4.0353953,139.08,139.01,71.26360516]
[1642445078926,7.88193356,139.08,139.01,71.26360516]
[1642445080025,7.88193356,139.08,139.01,24.9352]
[1642445084531,7.38193356,139.08,139.01,24.9352]
[1642445084932,3.84653826,139.08,139.01,24.9352]
[1642445085533,3.84653826,139.08,139.02,43.77267293]
[1642445085733,59.0795153,139.09,139.02,43.77267293]
[1642445086934,59.0795153,139.09,139.01,24.9352]
[1642445088637,62.92605356,139.09,139.01,24.9352]
[1642445092344,62.92605356,139.09,139.01,70.20661135]
[1642445092543,3.84653826,139.08,139.01,70.20661135]
[1642445093547,3.84653826,139.09,139.01,70.20661135]
[1642445094250,55.0465348,139.1,139.01,70.20661135]
[1642445094649,55.0465348,139.1,139.01,24.9352]
[1642445094850,10.29,139.09,139.01,24.9352]
[1642445096471,14.13653826,139.09,139.01,24.9352]
[1642445096676,10.7895,139.08,139.01,24.9352]
[1642445097069,14.13653826,139.09,139.01,24.9352]
[1642445097070,3.84653826,139.09,139.01,24.9352]
[1642445098373,15.67844978,139.09,139.01,24.9352]
[1642445098771,11.83191152,139.09,139.01,24.9352]
[1642445100871,22.12191152,139.09,139.01,24.9352]
[1642445101874,10.29,139.09,139.01,24.9352]
[1642445102887,53.38922487,139.09,139.01,24.9352]
[1642445104182,10.29,139.09,139.01,24.9352]
[1642445104682,3.84653826,139.1,139.01,24.9352]
[1642445106182,3.84653826,139.1,139.01,35.2252]
[1642445106383,3.84653826,139.1,139.01,106.7152]
[1642445106586,3.84653826,139.11,139.01,35.2252]
[1642445107386,27.94373826,139.11,139.01,24.9352]
[1642445108489,3.84653826,139.1,139.01,24.9352]
[1642445108690,37.11119174,139.09,139.01,24.9352]
[1642445109392,37.11119174,139.09,139.05,8.1245988]
[1642445109594,37.11119174,139.09,139.07,8.1245988]
[1642445109791,6.06439994,139.08,139.07,8.1245988]
[1642445112895,3.84653826,139.1,139.07,8.1245988]
[1642445113694,14.39573826,139.11,139.07,8.1245988]
[1642445114731,14.39573826,139.11,139.09,8.1245988]
[1642445114925,6.06439994,139.1,139.09,8.1245988]
[1642445116727,3.84653826,139.1,139.09,8.1245988]
[1642445117331,3.84653826,139.1,139.09,55.46929474]
[1642445117529,3.84653826,139.1,139.09,8.1245988]
[1642445118130,3.84653826,139.14,139.09,8.1245988]
[1642445119228,14.84464647,139.13,139.09,8.1245988]
[1642445119828,3.84653826,139.14,139.02,24.1152]
[1642445120031,3.84653826,139.13,139.11,8.1245988]
[1642445120229,6.06439994,139.12,139.11,8.1245988]
[1642445120428,3.03219997,139.12,139.11,8.1245988]
[1642445121029,3.84653826,139.13,139.11,8.1245988]
[1642445121930,6.87873823,139.13,139.11,8.1245988]
[1642445122334,3.03219997,139.12,139.11,8.1245988]
[1642445123838,6.87873823,139.13,139.11,8.1245988]
[1642445124035,3.84653826,139.13,139.11,13.7775988]
[1642445124437,3.84653826,139.14,139.11,57.00558932]
[1642445125139,3.84653826,139.14,139.11,48.88099052]
[1642445125537,3.84653826,139.14,139.12,8.1245988]
[1642445126038,3.84653826,139.15,139.12,8.1245988]
[1642445126238,3.84653826,139.15,139.12,13.8155988]
[1642445127339,3.84653826,139.19,139.12,13.8155988]
[1642445127541,3.84653826,139.19,139.12,36.3916988]
[1642445128440,36.04020039,139.2,139.12,36.3916988]
[1642445128639,36.04020039,139.2,139.12,30.7006988]
[1642445129443,3.84653826,139.19,139.12,30.7006988]
[1642445130443,3.84653826,139.19,139.16,8.1245988]
[1642445130644,9.9109382,139.18,139.16,8.1245988]
[1642445131845,3.84653826,139.18,139.16,8.1245988]
[1642445132947,3.03219997,139.17,139.16,8.1245988]
[1642445134048,3.84653826,139.19,139.16,8.1245988]
[1642445134548,3.84653826,139.19,139.16,50.17872559]
[1642445135553,3.84653826,139.2,139.14,24.8001]
[1642445135750,3.84653826,139.2,139.18,8.1245988]
[1642445137451,3.84653826,139.21,139.18,56.15630519]
[1642445139854,3.84653826,139.22,139.18,56.15630519]
[1642445140081,3.84653826,139.22,139.18,8.1245988]
[1642445140557,3.84653826,139.21,139.18,8.1245988]
[1642445140856,3.84653826,139.21,139.14,24.8001]
[1642445141055,3.84653826,139.21,139.18,8.1245988]
[1642445142456,3.84653826,139.22,139.18,8.1245988]
[1642445142656,3.84653826,139.22,139.19,48.01320301]
[1642445144159,3.84653826,139.23,139.19,48.01320301]
[1642445144357,3.84653826,139.23,139.18,8.1245988]
[1642445145557,14.62453826,139.23,139.18,8.1245988]
[1642445146058,3.84653826,139.23,139.2,8.1245988]
[1642445146257,6.06439994,139.22,139.2,8.1245988]
[1642445146458,6.06439994,139.22,139.2,16.2491976]
[1642445146857,6.06439994,139.22,139.2,54.98270711]
[1642445147057,3.84653826,139.22,139.2,54.98270711]
[1642445147760,3.84653826,139.22,139.2,16.2491976]
[1642445149460,3.84653826,139.23,139.2,16.2491976]
[1642445149860,10.29,139.22,139.2,16.2491976]
[1642445150059,64.03219997,139.21,139.2,16.2491976]
[1642445150259,74.32219997,139.21,139.2,9.76e-05]
[1642445150459,17.16873823,139.21,139.09,1.95100789]
[1642445150660,18.92493781,139.21,139.09,1.95100789]
[1642445150859,71.49,139.2,139.09,1.95100789]
[1642445151163,10.29,139.19,139.09,1.95100789]
[1642445151361,43.93748609,139.18,139.09,1.95100789]
[1642445151560,10.29,139.17,139.09,45.0020902]
[1642445151759,21.0726,139.17,139.09,45.0020902]
[1642445152459,21.0726,139.17,139.07,23.7283]
[1642445152662,3.84653826,139.16,139.07,23.7283]
[1642445153561,15.66800456,139.15,139.07,60.43423886]
[1642445154461,14.62973826,139.16,139.07,60.43423886]
[1642445154662,3.84653826,139.15,139.07,60.43423886]
[1642445155666,3.84653826,139.16,139.07,60.43423886]
[1642445155864,14.62973826,139.16,139.07,60.43423886]
[1642445156463,3.84653826,139.16,139.07,60.43423886]
[1642445157263,2.05076559,139.13,139.07,60.43423886]
[1642445158365,2.05076559,139.14,139.07,60.43423886]
[1642445158967,2.05076559,139.14,139.07,23.7283]
[1642445159868,2.05076559,139.14,139.08,37.42647792]
[1642445160470,2.05076559,139.13,139.08,37.42647792]
[1642445161671,2.05076559,139.15,139.08,37.42647792]
[1642445162701,2.05076559,139.14,139.08,37.42647792]
[1642445165199,2.05076559,139.15,139.08,37.42647792]
[1642445171707,21.82010735,139.15,139.08,37.42647792]
[1642445171908,2.05076559,139.15,139.08,37.42647792]
[1642445172110,2.05076559,139.15,139.07,102.72405291]
[1642445173108,2.05076559,139.15,139.08,48.81110281]
[1642445173710,2.05076559,139.14,139.08,48.81110281]
[1642445175211,16.30450036,139.14,139.08,48.31110281]
[1642445175509,2.05076559,139.14,139.08,48.31110281]
[1642445178509,2.05076559,139.15,139.08,48.31110281]
[1642445180612,2.05076559,139.15,139.08,60.56803815]
[1642445180812,2.05076559,139.15,139.09,94.5274]
[1642445181515,2.05076559,139.16,139.09,94.5274]
[1642445181715,2.05076559,139.16,139.09,106.78433534]
[1642445182415,2.05076559,139.17,139.09,106.78433534]
[1642445182713,2.05076559,139.17,139.09,117.56283534]
[1642445184816,13.77332095,139.17,139.09,117.56283534]
[1642445185019,13.77332095,139.17,139.09,35.29433534]
[1642445185616,13.77332095,139.17,139.09,23.0374]
[1642445186518,13.77332095,139.17,139.09,61.81565355]
[1642445186519,2.05076559,139.15,139.09,61.81565355]
[1642445186716,2.05076559,139.15,139.09,23.0374]
[1642445190718,2.05076559,139.16,139.09,23.0374]
[1642445192220,2.05076559,139.15,139.09,23.0374]
[1642445192419,2.05076559,139.15,139.06,25.95769663]
[1642445192622,2.05076559,139.15,139.06,38.15264323]
[1642445192623,40.42769053,139.14,139.06,38.15264323]
[1642445192820,40.42769053,139.14,139.06,25.89570789]
[1642445193221,42.47845612,139.14,139.06,23.9447]
[1642445194225,2.05076559,139.12,139.06,23.9447]
[1642445194426,19.67780012,139.11,139.06,23.9447]
[1642445194624,2.05076559,139.12,139.06,23.9447]
[1642445195323,2.05076559,139.13,139.06,23.9447]
[1642445195625,2.05076559,139.13,139.06,66.8436072]
[1642445198128,2.05076559,139.14,139.06,66.8436072]
[1642445203737,2.05076559,139.14,139.06,138.3336072]
[1642445205566,2.05076559,139.14,139.06,140.28461509]
[1642445206565,26.42966559,139.15,139.06,140.28461509]
[1642445211771,26.42966559,139.15,139.06,151.06621509]
[1642445212873,24.3789,139.15,139.06,149.1152072]
[1642445213974,26.42966559,139.15,139.06,151.06621509]
[1642445219282,26.42966559,139.15,139.06,79.57621509]
[1642445219482,26.42966559,139.15,139.06,25.89570789]
[1642445219684,32.27666559,139.15,139.06,1.95100789]
[1642445219884,73.54076559,139.14,139.06,1.95100789]
[1642445220486,23.87860108,139.13,139.06,1.95100789]
[1642445220788,2.05076559,139.12,139.06,1.95100789]
[1642445220986,2.05076559,139.12,139.03,162.72233506]
[1642445221194,25.72396559,139.12,139.06,47.86447656]
[1642445221390,2.05076559,139.12,139.06,47.86447656]
[1642445222488,2.05076559,139.12,139.04,22.8761]
[1642445222888,12.83656559,139.13,139.04,24.82710789]
[1642445223691,2.05076559,139.12,139.05,47.58353684]
[1642445224888,2.05076559,139.12,139.06,24.4572]
[1642445226892,2.05076559,139.13,139.06,24.4572]
[1642445228192,2.05076559,139.13,139.06,36.2069534]
[1642445229495,24.3024,139.14,139.06,38.15796129]
[1642445229696,24.3024,139.14,139.06,48.93976129]
[1642445231622,2.05076559,139.15,139.06,48.93976129]
[1642445231822,2.05076559,139.15,139.06,69.40469663]
[1642445232024,2.05076559,139.15,139.07,10.29]
[1642445232426,2.05076559,139.15,139.09,10.779]
[1642445232624,2.05076559,139.15,139.1,24.8838]
[1642445232824,2.05076559,139.15,139.11,42.19636059]
[1642445233326,2.05076559,139.17,139.11,42.19636059]
[1642445233727,2.05076559,139.17,139.1,24.8838]
[1642445234626,2.05076559,139.17,139.1,35.6627]
[1642445234827,2.05076559,139.17,139.11,43.14482937]
[1642445235327,2.05076559,139.17,139.1,24.8838]
[1642445236429,2.05076559,139.17,139.1,69.71192008]
[1642445238329,2.05076559,139.17,139.1,81.46167348]
[1642445238930,2.05076559,139.17,139.1,152.95167348]
[1642445239133,2.05076559,139.17,139.1,81.46167348]
[1642445239732,2.05076559,139.18,139.1,81.46167348]
[1642445239930,2.05076559,139.18,139.1,87.84367348]
[1642445241334,23.30007624,139.18,139.1,76.09392008]
[1642445241532,23.30007624,139.18,139.1,69.71192008]
[1642445241734,2.05076559,139.18,139.1,69.71192008]
[1642445242333,2.05076559,139.17,139.1,69.71192008]
[1642445242533,2.05076559,139.17,139.1,24.8838]
[1642445242732,2.05076559,139.17,139.09,12.24100789]
[1642445242933,2.05076559,139.17,139.09,1.95100789]
[1642445243535,42.3793589,139.16,139.09,1.95100789]
[1642445244345,44.43012449,139.16,139.07,72.8606313]
[1642445246037,44.43012449,139.16,139.07,24.70150789]
[1642445246645,115.92012449,139.16,139.07,1.95100789]
[1642445247039,2.05076559,139.14,139.05,25.07450789]
[1642445247239,17.72613175,139.13,139.05,25.07450789]
[1642445247641,17.72613175,139.13,139.06,49.12008182]
[1642445248043,2.05076559,139.13,139.06,49.12008182]
[1642445248641,2.05076559,139.13,139.07,23.8532]
[1642445249042,2.05076559,139.14,139.07,23.8532]
[1642445252946,13.2423072,139.15,139.07,25.80420789]
[1642445253348,2.05076559,139.15,139.07,25.80420789]
[1642445254849,2.05076559,139.16,139.07,25.80420789]
[1642445256051,40.36653643,139.15,139.07,25.80420789]
[1642445256884,42.41730202,139.15,139.07,25.80420789]
[1642445257788,2.05076559,139.14,139.07,23.8532]
[1642445259087,42.41730202,139.15,139.07,23.8532]
[1642445267600,2.05076559,139.15,139.07,23.8532]
[1642445268499,45.19083089,139.15,139.07,23.8532]
[1642445269602,2.05076559,139.15,139.07,23.8532]
[1642445270508,39.70105073,139.15,139.07,23.8532]
[1642445271007,2.05076559,139.15,139.07,25.80420789]
[1642445271904,39.82671286,139.16,139.07,25.80420789]
[1642445274905,39.82671286,139.16,139.07,97.29420789]
[1642445275138,39.82671286,139.16,139.07,25.80420789]
[1642445279408,39.82671286,139.16,139.07,23.8532]
[1642445279610,2.05076559,139.14,139.07,23.8532]
[1642445280811,22.32954338,139.13,139.07,23.8532]
[1642445282016,2.05076559,139.14,139.07,23.8532]
[1642445283050,46.18789181,139.14,139.07,23.8532]
[1642445284452,2.05076559,139.14,139.07,23.8532]
[1642445284654,25.47056559,139.15,139.07,23.8532]
[1642445285350,40.25867051,139.14,139.07,23.8532]
[1642445285853,42.3094361,139.14,139.07,23.8532]
[1642445291861,2.05076559,139.14,139.08,44.61099765]
[1642445292059,2.05076559,139.14,139.11,0.32156035]
[1642445292259,2.05076559,139.14,139.11,6.11456035]
[1642445292459,2.05076559,139.14,139.11,5.793]
[1642445293060,20.66196185,139.14,139.11,5.793]
[1642445293263,6.06439994,139.13,139.1,23.169]
[1642445293859,6.06439994,139.13,139.09,10.29]
[1642445294059,6.06439994,139.13,139.08,1.95100789]
[1642445294461,6.06439994,139.13,139.07,26.64280789]
[1642445295062,6.06439994,139.13,139.08,39.34984738]
[1642445295262,6.06439994,139.13,139.07,24.6918]
[1642445296264,6.06439994,139.13,139.08,34.85750421]
[1642445296665,3.03219997,139.13,139.08,34.85750421]
[1642445296968,2.05076559,139.14,139.08,34.85750421]
[1642445297165,2.05076559,139.14,139.09,24.111]
[1642445297567,2.05076559,139.16,139.09,24.111]
[1642445298368,2.05076559,139.15,139.09,24.111]
[1642445299572,2.05076559,139.16,139.09,24.111]
[1642445301175,2.05076559,139.16,139.09,30.045]
[1642445301700,2.05076559,139.16,139.09,40.8235]
[1642445302401,24.85296559,139.17,139.09,42.77450789]
[1642445302600,2.05076559,139.17,139.09,42.77450789]
[1642445303700,2.05076559,139.17,139.1,10.29]
[1642445303900,2.05076559,139.17,139.12,10.7756]
[1642445304102,2.05076559,139.17,139.12,21.0656]
[1642445304301,2.05076559,139.17,139.13,45.05058599]
[1642445305101,2.05076559,139.18,139.13,45.05058599]
[1642445306202,2.05076559,139.18,139.11,23.2813]
[1642445307602,2.05076559,139.17,139.11,23.2813]
[1642445308005,2.05076559,139.17,139.12,48.0698389]
[1642445309107,2.05076559,139.17,139.11,23.2813]
[1642445310410,2.05076559,139.17,139.08,41.17751257]
[1642445310612,25.80916559,139.17,139.09,24.0513]
[1642445311212,2.05076559,139.15,139.09,24.0513]
[1642445311412,37.36997753,139.15,139.09,24.0513]
[1642445311612,2.05076559,139.15,139.09,24.0513]
[1642445314719,2.05076559,139.16,139.09,24.0513]
[1642445315618,2.05076559,139.15,139.09,24.0513]
[1642445318721,2.05076559,139.16,139.09,24.0513]
[1642445327658,2.05076559,139.16,139.09,32.4183]
[1642445328662,2.05076559,139.17,139.09,32.4183]
[1642445330467,2.05076559,139.17,139.09,34.36930789]
[1642445330866,2.05076559,139.17,139.09,46.11906129]
[1642445331073,2.05076559,139.17,139.14,1.8318]
[1642445331263,2.05076559,139.17,139.14,10.0801287]
[1642445331664,2.05076559,139.17,139.15,38.56022181]
[1642445332663,2.05076559,139.18,139.15,38.56022181]
[1642445333765,7.94649148,139.22,139.15,38.56022181]
[1642445333766,2.05076559,139.19,139.15,38.56022181]
[1642445335974,2.05076559,139.19,139.15,110.05022181]
[1642445336372,2.05076559,139.19,139.15,38.56022181]
[1642445336770,2.05076559,139.19,139.15,61.66462181]
[1642445336970,2.05076559,139.19,139.16,10.29]
[1642445337373,6.06439994,139.18,139.16,10.29]
[1642445337572,2.05076559,139.19,139.16,10.29]
[1642445337772,2.05076559,139.21,139.16,10.29]
[1642445340502,2.05076559,139.22,139.16,10.29]
[1642445340703,2.05076559,139.22,139.17,23.5083]
[1642445341306,2.05076559,139.22,139.17,46.34249784]
[1642445342309,2.05076559,139.24,139.17,46.34249784]
[1642445342504,2.05076559,139.24,139.19,1.8318]
[1642445342703,2.05076559,139.24,139.2,47.83406601]
[1642445344008,2.05076559,139.25,139.2,47.83406601]
[1642445345009,2.05076559,139.25,139.2,119.32406601]
[1642445345410,2.05076559,139.25,139.2,47.83406601]
[1642445345710,2.05076559,139.25,139.21,10.29]
[1642445346111,2.05076559,139.26,139.21,10.29]
[1642445346314,2.05076559,139.26,139.21,33.1553]
[1642445347912,29.96503694,139.32,139.21,33.1553]
[1642445347913,2.05076559,139.27,139.21,33.1553]
[1642445348113,2.05076559,139.27,139.21,104.6453]
[1642445348319,2.05076559,139.27,139.21,117.18949784]
[1642445350119,2.05076559,139.27,139.21,135.28749985]
[1642445351321,2.05076559,139.27,139.21,129.28349985]
[1642445351526,2.05076559,139.29,139.21,129.28349985]
[1642445352521,24.0244,139.31,139.25,3.8581287]
[1642445352522,2.05076559,139.28,139.25,3.8581287]
[1642445353621,2.05076559,139.28,139.26,46.88220278]
[1642445353821,2.05076559,139.29,139.26,46.88220278]
[1642445354521,24.5634,139.34,139.26,46.88220278]
[1642445354522,2.05076559,139.3,139.26,46.88220278]
[1642445355624,2.05076559,139.29,139.26,46.88220278]
[1642445356425,2.05076559,139.3,139.26,46.88220278]
[1642445358525,24.5634,139.34,139.26,46.88220278]
[1642445359925,5.77453694,139.36,139.27,22.8523]
[1642445360730,5.64632322,139.36,139.27,22.8523]
[1642445361128,15.321616,139.35,139.27,22.8523]
[1642445361528,23.7904,139.37,139.27,22.8523]
[1642445362830,23.7904,139.37,139.27,33.1423]
[1642445366934,2.05076559,139.32,139.27,10.29]
[1642445367832,2.05076559,139.31,139.27,10.29]
[1642445368033,2.05076559,139.31,139.28,22.8788]
[1642445370136,2.05076559,139.32,139.28,22.8788]
[1642445371937,3.84653826,139.35,139.3,41.0]
[1642445372136,3.84653826,139.35,139.3,129.687]
[1642445372336,3.84653826,139.35,139.31,2.06108785]
[1642445372536,3.84653826,139.35,139.32,10.29]
[1642445372738,3.84653826,139.35,139.32,49.58747995]
[1642445372936,3.84653826,139.37,139.32,49.58747995]
[1642445373539,3.84653826,139.37,139.32,10.29]
[1642445374537,17.24405461,139.39,139.32,10.29]
[1642445374538,21.09059287,139.39,139.32,10.29]
[1642445375341,3.84653826,139.39,139.32,10.29]
[1642445375541,7.94090226,139.38,139.32,10.29]
[1642445376239,55.79433433,139.38,139.32,10.29]
[1642445376640,47.85343207,139.38,139.32,10.29]
[1642445377039,3.84653826,139.39,139.32,10.29]
[1642445377945,49.46626736,139.38,139.32,10.29]
[1642445380039,3.84653826,139.39,139.32,48.72241696]
[1642445380645,3.84653826,139.38,139.32,48.72241696]
[1642445381242,2.34653826,139.38,139.32,120.21241696]
[1642445381542,2.34653826,139.38,139.33,23.2811]
[1642445381742,22.6921,139.42,139.33,23.2811]
[1642445382345,41.78100061,139.41,139.37,1.8318]
[1642445382543,41.78100061,139.41,139.37,3.8581287]
[1642445382843,45.87515401,139.41,139.37,3.8581287]
[1642445383042,4.0941534,139.41,139.37,3.8581287]
[1642445384144,37.70390287,139.4,139.37,3.8581287]
[1642445384442,6.06439994,139.39,139.37,3.8581287]
[1642445384843,4.0941534,139.41,139.37,3.8581287]
[1642445385847,51.08154859,139.41,139.37,3.8581287]
[1642445386450,46.98739519,139.41,139.37,3.8581287]
[1642445386847,23.7856,139.45,139.37,3.8581287]
[1642445388277,38.92877229,139.44,139.37,3.8581287]
[1642445388774,43.02272838,139.44,139.37,3.8581287]
[1642445389375,10.7622,139.43,139.37,3.8581287]
[1642445389778,14.85615609,139.43,139.37,3.8581287]
[1642445390678,4.09395609,139.42,139.37,3.8581287]
[1642445390877,23.22748395,139.41,139.37,3.8581287]
[1642445391079,22.72748395,139.41,139.37,3.8581287]
[1642445391777,20.70115525,139.41,139.37,1.8318]
[1642445392677,4.09395609,139.4,139.37,1.8318]
[1642445392879,3.03219997,139.39,139.34,22.9647]
[1642445393078,6.06439994,139.39,139.34,22.9647]
[1642445393478,36.47741818,139.38,139.34,22.9647]
[1642445394481,10.7622,139.43,139.34,22.9647]
[1642445394680,34.0756,139.45,139.34,22.9647]
[1642445394681,44.8366,139.45,139.34,22.9647]
[1642445395381,46.99603533,139.44,139.34,24.72089958]
[1642445395883,57.75743533,139.44,139.34,22.9647]
[1642445396082,22.9538,139.43,139.34,22.9647]
[1642445396682,10.29,139.49,139.35,59.98435134]
[1642445396883,10.24957692,139.5,139.41,0.31805549]
[1642445397084,10.24957692,139.5,139.42,10.29]
[1642445397284,10.24957692,139.5,139.42,81.78]
[1642445397483,10.24957692,139.5,139.42,83.53619958]
[1642445397683,10.24957692,139.5,139.43,46.12303505]
[1642445397883,8.18581898,139.51,139.44,10.29]
[1642445398083,8.18581898,139.51,139.44,12.04619958]
[1642445398484,8.18581898,139.51,139.45,1.75619958]
[1642445398685,8.18581898,139.51,139.46,120.71826313]
[1642445398888,8.18581898,139.51,139.46,59.97686313]
[1642445399086,8.18581898,139.51,139.47,1.75619958]
[1642445399284,9.53782619,139.53,139.48,10.29]
[1642445399684,9.53782619,139.53,139.49,43.3744183]
[1642445399885,9.53782619,139.53,139.5,10.29]
[1642445400184,9.53782619,139.53,139.5,21.0386]
[1642445400391,9.53782619,139.53,139.5,10.29]
[1642445401085,9.53782619,139.53,139.5,21.0383]
[1642445401489,9.53782619,139.53,139.5,22.79449958]
[1642445401686,10.24957692,139.64,139.53,71.49]
[1642445401887,10.24957692,139.64,139.57,0.30131316]
[1642445402085,10.24957692,139.64,139.59,10.7398]
[1642445402288,10.24957692,139.65,139.6,10.29]
[1642445402786,10.24957692,139.65,139.6,12.04619958]
[1642445402987,10.24957692,139.65,139.6,10.29]
[1642445403187,10.24957692,139.65,139.61,12.49539958]
[1642445403387,16.42237949,139.68,139.62,10.29]
[1642445403588,562.26736648,139.75,139.62,12.04619958]
[1642445403789,10.24957692,139.75,139.62,47.83689958]
[1642445404189,40.25237555,139.69,139.63,37.22798551]
[1642445404389,40.25237555,139.69,139.64,10.29]
[1642445404588,40.25237555,139.69,139.65,10.7374]
[1642445404791,40.25237555,139.69,139.65,21.0274]
[1642445405392,40.25237555,139.69,139.65,10.29]
[1642445405993,40.25237555,139.69,139.61,10.29]
[1642445406445,39.75237555,139.69,139.61,10.29]
[1642445406594,39.75237555,139.69,139.61,47.08123474]
[1642445406792,10.29,139.76,139.61,57.82193474]
[1642445407092,10.29,139.76,139.61,72.79645439]
[1642445407694,47.69768529,139.73,139.61,72.79645439]
[1642445408295,30.92152615,139.7,139.61,10.29]
[1642445408693,41.21152615,139.7,139.55,10.29]
[1642445409297,41.21152615,139.7,139.56,48.43714531]
[1642445409594,41.21152615,139.7,139.57,10.29]
[1642445410395,51.95312615,139.7,139.57,21.0332]
[1642445410895,51.95312615,139.7,139.57,10.29]
[1642445411999,123.44312615,139.7,139.57,10.29]
[1642445412200,125.19932573,139.7,139.54,10.29]
[1642445412497,125.19932573,139.7,139.53,47.2425]
[1642445413096,125.19932573,139.7,139.52,55.2925746]
[1642445414600,125.19932573,139.7,139.52,66.0390746]
[1642445416200,125.19932573,139.7,139.5,10.7479]
[1642445416399,120.13872573,139.7,139.48,48.4568]
[1642445416606,10.75,139.63,139.47,10.29]
[1642445416804,10.29,139.62,139.47,10.29]
[1642445417009,12.04619958,139.62,139.44,47.7248]
[1642445417206,37.97937912,139.61,139.45,38.17291965]
[1642445417405,10.29,139.6,139.45,38.17291965]
[1642445418205,10.29,139.6,139.45,60.67012861]
[1642445418407,71.49,139.59,139.46,24.9994]
[1642445418608,50.35061621,139.58,139.46,35.7504]
[1642445418807,39.59841621,139.58,139.48,45.87069493]
[1642445419007,10.29,139.6,139.48,45.87069493]
[1642445419408,10.29,139.6,139.48,59.83410347]
[1642445419810,10.29,139.6,139.48,84.17820347]
[1642445420011,54.3280554,139.6,139.48,84.17820347]
[1642445420513,54.3280554,139.6,139.49,10.7491]
[1642445422140,44.0380554,139.6,139.49,10.7491]